bitfinex-derivatives/quotes_BTCF0:USTF0_20250922
["timestamp","ask_amount","ask_price","bid_price","bid_amount"]
[1758522705147,0.18181378,112860.0,112850.0,0.08509]
[1758522705345,0.18681378,112860.0,112850.0,0.08509]
[1758522705645,0.08439,112840.0,112830.0,0.14097]
[1758522705842,0.08439,112840.0,112830.0,0.14057]
[1758522706148,0.08439,112840.0,112830.0,0.14097]
[1758522707552,0.08639,112840.0,112830.0,0.14097]
[1758522708244,0.09139,112840.0,112830.0,0.14097]
[1758522708656,0.09139,112840.0,112830.0,0.08549]
[1758522708851,0.89144534,112840.0,112810.0,0.05548]
[1758522709147,0.13697,112820.0,112810.0,0.08589]
[1758522709353,0.207107,112820.0,112810.0,0.08509]
[1758522709653,0.207107,112820.0,112810.0,0.08549]
[1758522709853,0.0001,112830.0,112820.0,0.2291408]
[1758522710154,0.0051,112840.0,112830.0,0.229133]
[1758522710449,0.005,112840.0,112830.0,0.14057]
[1758522710646,0.08939,112840.0,112830.0,0.14057]
[1758522710845,0.08439,112840.0,112830.0,0.229133]
[1758522711453,0.08939,112840.0,112830.0,0.229133]
[1758522712756,0.09139,112840.0,112830.0,0.229133]
[1758522713257,0.09139,112840.0,112830.0,0.14057]
[1758522713449,0.09139,112840.0,112830.0,0.229133]
[1758522713950,0.09139,112840.0,112830.0,0.08509]
[1758522714256,0.14318,112840.0,112830.0,0.08509]
[1758522714456,0.14240805,112840.0,112830.0,0.08509]
[1758522714647,0.14240805,112840.0,112830.0,0.08549]
[1758522714849,0.39240805,112840.0,112820.0,0.0001]
[1758522715055,0.14013,112830.0,112820.0,0.0842]
[1758522715254,0.14013,112830.0,112820.0,0.0841]
[1758522715553,0.39013,112830.0,112820.0,0.0004]
[1758522715949,0.39013,112830.0,112810.0,0.0886785]
[1758522716160,0.14013,112820.0,112810.0,0.1727785]
[1758522716356,0.14013,112820.0,112810.0,0.1726785]
[1758522716657,0.14013,112820.0,112810.0,0.0841]
[1758522717650,0.14013,112820.0,112810.0,0.0861]
[1758522717851,0.14013,112820.0,112810.0,0.002]
[1758522718051,0.14013,112820.0,112810.0,0.0024]
[1758522718256,0.14013,112820.0,112810.0,0.0004]
[1758522718564,0.21156548,112820.0,112810.0,0.0855]
[1758522718952,0.18445997,112820.0,112810.0,0.0855]
[1758522719148,0.43445997,112820.0,112810.0,0.0014]
[1758522719456,0.05179,112810.0,112800.0,0.0001]
[1758522719656,0.14013,112810.0,112800.0,0.0849]
[1758522719857,0.14013,112810.0,112800.0,0.0841]
[1758522720054,0.14013,112810.0,112800.0,0.0845]
[1758522720447,0.14013,112800.0,112790.0,0.00049021]
[1758522720654,0.13913,112800.0,112790.0,0.00119021]
[1758522720959,0.13713,112800.0,112790.0,0.08449021]
[1758522721155,0.13713,112800.0,112790.0,0.08489021]
[1758522721357,0.13713,112800.0,112790.0,0.00079021]
[1758522721555,0.38713,112800.0,112790.0,0.00079021]
[1758522721757,0.38713,112800.0,112790.0,0.00539021]
[1758522722055,0.38713,112800.0,112790.0,0.00579021]
[1758522722259,0.38713,112800.0,112790.0,0.00779021]
[1758522722652,0.88460534,112800.0,112790.0,0.00779021]
[1758522722956,0.88460534,112800.0,112770.0,0.00325368]
[1758522722957,0.14013,112780.0,112770.0,0.00325368]
[1758522723260,1.12957,112780.0,112770.0,0.00325368]
[1758522723461,1.12957,112780.0,112770.0,0.00405368]
[1758522723648,1.12957,112780.0,112770.0,0.00325368]
[1758522723854,0.14013,112780.0,112770.0,0.00365368]
[1758522724163,0.14013,112780.0,112770.0,0.08775368]
[1758522724164,0.39013,112780.0,112770.0,0.08775368]
[1758522724357,0.39013,112780.0,112770.0,0.09875368]
[1758522724960,0.14013,112780.0,112770.0,0.09875368]
[1758522725760,0.14013,112780.0,112770.0,0.10375368]
[1758522726057,0.16367589,112780.0,112770.0,0.01965368]
[1758522726460,0.23323537,112780.0,112770.0,0.01965368]
[1758522727959,0.23323537,112780.0,112770.0,0.10375368]
[1758522728162,0.04879,112800.0,112770.0,0.49611388]
[1758522728460,0.08844,112810.0,112800.0,0.13785]
[1758522728768,0.08844,112820.0,112810.0,0.13785]
[1758522728960,0.08834,112820.0,112810.0,0.13785]
[1758522729262,0.08834,112820.0,112800.0,0.05375]
[1758522729263,0.14013,112820.0,112800.0,0.05375]
[1758522729468,0.14023,112820.0,112810.0,0.0004]
[1758522729765,0.63760534,112820.0,112810.0,0.0004]
[1758522730065,0.08834,112800.0,112790.0,0.13785]
[1758522730359,0.08834,112800.0,112790.0,0.0841]
[1758522730568,0.14013,112800.0,112790.0,0.0849]
[1758522730763,0.39013,112800.0,112770.0,0.15361388]
[1758522730953,0.08845,112780.0,112770.0,0.23068388]
[1758522731162,0.08845,112790.0,112780.0,0.2231124]
[1758522731766,0.08745,112790.0,112780.0,0.13451]
[1758522732965,0.08545,112790.0,112780.0,0.13451]
[1758522733467,0.13671,112790.0,112770.0,0.05740368]
[1758522733761,0.13671,112790.0,112780.0,0.007]
[1758522733960,0.13671,112790.0,112780.0,0.09127]
[1758522734161,0.13671,112790.0,112780.0,0.09167]
[1758522734567,0.13671,112790.0,112780.0,0.08767]
[1758522735263,0.13671,112790.0,112780.0,0.09167]
[1758522735567,0.13671,112790.0,112780.0,0.08867]
[1758522736465,0.13671,112790.0,112780.0,0.09067]
[1758522737468,0.08545,112790.0,112780.0,0.14091]
[1758522737862,0.08545,112790.0,112780.0,0.2295124]
[1758522738064,0.15837973,112800.0,112790.0,0.13451]
[1758522738269,0.08845,112800.0,112790.0,0.72057994]
[1758522738474,0.08855,112810.0,112800.0,0.05024]
[1758522738669,0.08855,112810.0,112800.0,0.69142242]
[1758522738670,0.08845,112810.0,112800.0,0.69142242]
[1758522738863,0.08845,112810.0,112800.0,0.08427]
[1758522739061,0.13971,112810.0,112800.0,0.08427]
[1758522739565,0.21107914,112810.0,112800.0,0.08427]
[1758522740064,0.15981914,112810.0,112800.0,0.13451]
[1758522741464,0.16181914,112810.0,112800.0,0.13451]
[1758522741670,0.16191914,112810.0,112800.0,0.13451]
[1758522741860,0.16191914,112810.0,112800.0,0.69142242]
[1758522743072,0.16191914,112810.0,112800.0,0.13451]
[1758522743270,0.21317914,112810.0,112800.0,0.08427]
[1758522743466,0.16191914,112810.0,112800.0,0.13451]
[1758522744764,0.16191914,112810.0,112800.0,0.69142242]
[1758522745773,0.16191914,112810.0,112800.0,0.13451]
[1758522748566,0.16191914,112810.0,112800.0,0.69142242]
[1758522749672,0.16191914,112810.0,112800.0,0.13451]
[1758522749865,0.16191914,112810.0,112800.0,0.69142242]
[1758522750278,0.16191914,112810.0,112800.0,0.13451]
[1758522750473,0.16191914,112810.0,112800.0,0.69142242]
[1758522750774,0.21321914,112810.0,112800.0,0.08427]
[1758522750979,0.0513,112790.0,112780.0,0.08649]
[1758522751180,0.13468,112790.0,112780.0,0.08639]
[1758522751368,0.08338,112790.0,112780.0,0.69270242]
[1758522751572,0.08338,112790.0,112780.0,0.78130482]
[1758522751773,0.08338,112790.0,112780.0,0.69270242]
[1758522751974,0.08338,112790.0,112780.0,0.78470482]
[1758522752583,0.08338,112790.0,112780.0,0.69610242]
[1758522753878,0.08338,112790.0,112780.0,0.78470482]
[1758522754679,0.08338,112790.0,112780.0,0.78870482]
[1758522756484,0.08338,112790.0,112780.0,0.2317924]
[1758522756783,0.08338,112790.0,112780.0,0.78870482]
[1758522757780,0.08338,112790.0,112780.0,0.70010242]
[1758522759080,0.08338,112790.0,112780.0,0.78870482]
[1758522759272,0.08338,112790.0,112780.0,0.14319]
[1758522759478,0.08338,112790.0,112780.0,0.70010242]
[1758522760184,0.08338,112790.0,112780.0,0.14319]
[1758522760373,0.08338,112790.0,112780.0,0.70010242]
[1758522761386,0.08338,112790.0,112780.0,0.78870482]
[1758522761887,0.08338,112790.0,112780.0,0.70010242]
[1758522763284,0.13468,112790.0,112780.0,0.14319]
[1758522763490,1.36488,112790.0,112780.0,0.007]
[1758522764089,1.36488,112790.0,112780.0,0.0074]
[1758522764286,1.36488,112790.0,112780.0,0.007]
[1758522764591,1.36488,112790.0,112780.0,0.0074]
[1758522765296,1.36464,112790.0,112780.0,0.0074]
[1758522765590,1.36464,112790.0,112780.0,0.09379]
[1758522765994,1.36424,112790.0,112780.0,0.09379]
[1758522766191,1.3642,112790.0,112780.0,0.09379]
[1758522766394,1.36416,112790.0,112780.0,0.09379]
[1758522767596,0.38468,112790.0,112780.0,0.09379]
[1758522767792,1.36412,112790.0,112780.0,0.09379]
[1758522768992,0.38468,112790.0,112780.0,0.09379]
[1758522769298,0.08338,112790.0,112780.0,1.03870482]
[1758522769498,0.08338,112790.0,112780.0,0.95010242]
[1758522770098,0.13468,112790.0,112780.0,0.39319]
[1758522770492,0.13468,112790.0,112780.0,0.14319]
[1758522770792,0.13468,112790.0,112780.0,0.09379]
[1758522771094,0.13468,112790.0,112780.0,0.0074]
[1758522771489,0.13468,112790.0,112780.0,0.007]
[1758522771697,0.13468,112790.0,112780.0,0.0074]
[1758522773101,0.13468,112790.0,112780.0,0.09379]
[1758522773398,0.47428,112790.0,112780.0,0.09379]
[1758522774395,1.0607,112790.0,112780.0,0.69973242]
[1758522774800,0.08338,112790.0,112780.0,0.69973242]
[1758522775903,0.08338,112790.0,112780.0,0.94973242]
[1758522777004,0.08338,112790.0,112780.0,1.03833482]
[1758522778505,0.08338,112790.0,112780.0,0.94973242]
[1758522778898,0.08338,112790.0,112780.0,1.03833482]
[1758522779499,0.0001,112790.0,112780.0,1.13833482]
[1758522781508,0.07146914,112810.0,112800.0,0.2244767]
[1758522781703,0.07136914,112810.0,112800.0,0.78138912]
[1758522781898,0.02062807,112820.0,112810.0,0.1376088]
[1758522782103,0.10650807,112820.0,112810.0,0.78138122]
[1758522782304,0.02052807,112820.0,112810.0,0.78138122]
[1758522782506,0.08598,112820.0,112810.0,0.78138122]
[1758522782706,0.08608,112830.0,112820.0,0.13589]
[1758522782908,0.08598,112830.0,112820.0,0.13589]
[1758522783299,0.38656,112830.0,112820.0,0.08686]
[1758522783712,0.38656,112830.0,112810.0,0.60594242]
[1758522783904,0.13666,112830.0,112810.0,0.60594242]
[1758522784211,0.20978483,112830.0,112810.0,0.04903]
[1758522784405,0.13656,112820.0,112810.0,0.13589]
[1758522784612,1.111,112820.0,112810.0,0.08686]
[1758522785109,1.91791242,112820.0,112810.0,0.0004]
[1758522785409,1.93804152,112820.0,112810.0,0.0004]
[1758522785798,0.05058,112810.0,112800.0,0.08686]
[1758522786003,0.13656,112810.0,112790.0,0.04903]
[1758522786198,1.11076,112800.0,112790.0,0.08686]
[1758522786809,1.11076,112800.0,112790.0,0.08726]
[1758522787608,1.11076,112800.0,112790.0,0.08826]
[1758522789308,1.11176,112800.0,112790.0,0.08826]
[1758522790212,1.11176,112800.0,112790.0,0.0014]
[1758522790411,1.11176,112800.0,112790.0,0.001]
[1758522790914,1.11176,112800.0,112790.0,0.0014]
[1758522791106,1.36176,112800.0,112790.0,0.0014]
[1758522791410,1.36008,112800.0,112790.0,0.0014]
[1758522791617,1.36,112800.0,112790.0,0.0014]
[1758522791816,1.36,112800.0,112790.0,0.08826]
[1758522792920,0.38756,112800.0,112790.0,0.08826]
[1758522793514,0.08698,112800.0,112790.0,0.94694242]
[1758522793711,0.08306,112800.0,112790.0,0.94694242]
[1758522794207,0.001,112800.0,112790.0,0.94694242]
[1758522794814,0.001,112800.0,112790.0,1.03553692]
[1758522797011,0.08306,112800.0,112790.0,0.39003]
[1758522797211,0.08306,112800.0,112790.0,0.94694242]
[1758522797514,0.08306,112800.0,112790.0,0.39003]
[1758522797713,0.08306,112800.0,112790.0,1.03553692]
[1758522797918,0.001,112800.0,112790.0,1.03553692]
[1758522800521,0.001,112800.0,112790.0,0.4786245]
[1758522800721,0.001,112800.0,112790.0,0.97653415]
[1758522802118,0.001,112800.0,112790.0,1.07653415]
[1758522802320,0.0002,112810.0,112800.0,0.2246967]
[1758522802525,0.0203291,112820.0,112810.0,0.2246888]
[1758522802722,0.08226,112830.0,112820.0,0.224681]
[1758522802920,0.17171465,112830.0,112820.0,0.224681]
[1758522803120,0.07190201,112830.0,112820.0,0.72259065]
[1758522803325,0.08226,112840.0,112830.0,0.13611]
[1758522803524,0.15460028,112840.0,112830.0,0.13611]
[1758522803723,0.15460028,112840.0,112830.0,0.2246731]
[1758522803924,0.08206,112840.0,112830.0,0.2246731]
[1758522804224,0.08206,112840.0,112830.0,0.13611]
[1758522804623,0.10042993,112840.0,112830.0,0.13611]
[1758522805426,0.10742993,112840.0,112830.0,0.13611]
[1758522805625,0.10942993,112840.0,112830.0,0.13611]
[1758522805820,0.40835993,112840.0,112820.0,0.05187]
[1758522806126,0.15855993,112840.0,112830.0,0.0004]
[1758522806327,0.15835993,112840.0,112830.0,0.0004]
[1758522806723,0.15835993,112840.0,112830.0,0.08255]
[1758522806921,0.10242993,112840.0,112830.0,0.13093]
[1758522807125,0.10542993,112840.0,112830.0,0.13093]
[1758522807530,0.15435993,112840.0,112830.0,0.13093]
[1758522807727,0.22485293,112840.0,112830.0,0.13093]
[1758522807931,0.22385293,112840.0,112830.0,0.13093]
[1758522808229,0.17686222,112840.0,112830.0,0.13093]
[1758522808622,0.18086222,112840.0,112830.0,0.13093]
[1758522809230,0.17986222,112840.0,112830.0,0.13093]
[1758522809430,0.18186222,112840.0,112830.0,0.13093]
[1758522810429,1.14886222,112840.0,112830.0,0.13093]
[1758522810930,0.18186222,112840.0,112830.0,0.13093]
[1758522813433,1.14802222,112840.0,112830.0,0.13093]
[1758522814136,1.14794222,112840.0,112830.0,0.13093]
[1758522814929,1.14794222,112840.0,112830.0,0.0004]
[1758522814930,1.19687222,112840.0,112830.0,0.0004]
[1758522815431,0.04893,112830.0,112820.0,0.0001]
[1758522815637,0.13544,112830.0,112820.0,0.08295]
[1758522816134,0.13544,112830.0,112820.0,0.13133]
[1758522816135,0.08844929,112830.0,112820.0,0.13133]
[1758522816532,0.08844929,112830.0,112820.0,0.219901]
[1758522816932,0.09244929,112830.0,112820.0,0.219901]
[1758522817434,0.00593929,112830.0,112820.0,0.469901]
[1758522817734,0.00693929,112830.0,112820.0,0.469901]
[1758522818335,0.00693929,112830.0,112820.0,0.96781065]
[1758522819336,0.00693929,112830.0,112820.0,0.71781065]
[1758522820237,0.00693929,112830.0,112820.0,1.06781065]
[1758522820736,0.00693929,112830.0,112820.0,0.96781065]
[1758522821337,0.0002,112840.0,112830.0,0.2190931]
[1758522821530,0.0002,112850.0,112840.0,0.2190853]
[1758522821732,0.07100968,112860.0,112850.0,0.13053]
[1758522821934,0.08651,112860.0,112850.0,0.13053]
[1758522822134,0.10550112,112860.0,112850.0,0.13053]
[1758522822540,0.07916756,112860.0,112850.0,0.2190774]
[1758522822838,0.07916756,112860.0,112850.0,0.13053]
[1758522823039,0.09016756,112860.0,112850.0,0.2190774]
[1758522823340,0.09016756,112860.0,112850.0,0.13053]
[1758522824139,0.09316756,112860.0,112850.0,0.13053]
[1758522825140,0.09316756,112860.0,112850.0,0.2190774]
[1758522825537,0.09316756,112860.0,112850.0,0.13053]
[1758522825742,0.09316756,112860.0,112850.0,0.13057]
[1758522825939,0.14209756,112860.0,112850.0,0.13057]
[1758522826141,0.14209756,112860.0,112850.0,0.13097]
[1758522826340,0.46198303,112860.0,112850.0,0.08259]
[1758522827740,1.42442303,112860.0,112850.0,0.08259]
[1758522827944,1.42442303,112860.0,112850.0,0.08219]
[1758522828244,1.42442303,112860.0,112850.0,0.08259]
[1758522828746,1.42442303,112860.0,112850.0,0.13097]
[1758522829044,1.37541303,112860.0,112850.0,0.13097]
[1758522829341,0.16297303,112860.0,112850.0,0.2195174]
[1758522829941,0.16257303,112860.0,112850.0,0.2195174]
[1758522830145,0.16297303,112860.0,112850.0,0.2195174]
[1758522830339,0.16297303,112860.0,112850.0,0.13097]
[1758522830646,0.15697303,112860.0,112850.0,0.13097]
[1758522831143,0.15697303,112860.0,112850.0,0.2195174]
[1758522831345,0.15597303,112860.0,112850.0,0.2195174]
[1758522831839,0.09587659,112860.0,112850.0,0.2195174]
[1758522832045,0.08847659,112860.0,112850.0,0.2195174]
[1758522832242,0.0124,112860.0,112850.0,0.13097]
[1758522832443,0.09891,112860.0,112850.0,0.13097]
[1758522832745,0.0124,112860.0,112850.0,0.2195174]
[1758522833238,0.0084,112860.0,112850.0,0.2195174]
[1758522833444,0.02636309,112860.0,112850.0,0.2195174]
[1758522833745,0.11287309,112860.0,112850.0,0.2195174]
[1758522833946,0.02536309,112860.0,112850.0,0.2195174]
[1758522834446,0.02536309,112860.0,112850.0,0.71742705]
[1758522834641,0.02536309,112860.0,112850.0,0.2195174]
[1758522835344,0.02496309,112860.0,112850.0,0.96742705]
[1758522835846,0.02536309,112860.0,112850.0,0.96742705]
[1758522836237,0.0074,112860.0,112850.0,1.06742705]
[1758522836439,0.007,112860.0,112850.0,1.06742705]
[1758522836641,0.0074,112860.0,112850.0,1.06742705]
[1758522836946,0.007,112860.0,112850.0,0.96742705]
[1758522837146,0.0074,112860.0,112850.0,0.96742705]
[1758522837848,0.007,112860.0,112850.0,0.96742705]
[1758522838248,0.0074,112860.0,112850.0,0.96742705]
[1758522838542,0.0074,112860.0,112850.0,0.4695174]
[1758522838849,0.0074,112860.0,112850.0,0.96742705]
[1758522839035,0.0054,112860.0,112850.0,0.96742705]
[1758522839242,0.0064,112860.0,112850.0,0.96742705]
[1758522839547,0.0034,112860.0,112850.0,0.96742705]
[1758522840246,0.0034,112860.0,112850.0,0.4695174]
[1758522840441,0.0034,112860.0,112850.0,0.38097]
[1758522840442,0.08883,112860.0,112850.0,0.38097]
[1758522840646,0.08883,112860.0,112850.0,0.13097]
[1758522841346,0.08883,112860.0,112850.0,0.13057]
[1758522841546,0.08883,112860.0,112850.0,0.2195174]
[1758522842548,0.08883,112860.0,112850.0,0.69434705]
[1758522842748,0.08883,112860.0,112850.0,0.2195174]
[1758522843049,0.10683291,112860.0,112850.0,0.60579965]
[1758522843247,0.10683291,112860.0,112850.0,0.69434705]
[1758522844342,0.10679291,112860.0,112850.0,0.69430705]
[1758522844540,0.10679291,112860.0,112850.0,0.13093]
[1758522844947,0.10679291,112860.0,112850.0,0.60575965]
[1758522845644,0.87345256,112860.0,112850.0,0.00044]
[1758522846042,0.87345256,112860.0,112850.0,4e-05]
[1758522846248,0.87345256,112860.0,112850.0,0.00044]
[1758522846546,0.39862291,112860.0,112850.0,0.07989]
[1758522846746,1.83021256,112860.0,112850.0,0.07989]
[1758522846950,0.10679291,112860.0,112850.0,0.69078705]
[1758522847148,1.06339291,112860.0,112850.0,0.60223965]
[1758522847958,1.06339291,112860.0,112850.0,0.12741]
[1758522848546,1.06339291,112860.0,112850.0,0.60223965]
[1758522849051,1.06339291,112860.0,112850.0,0.12741]
[1758522849352,1.35522291,112860.0,112850.0,0.12741]
[1758522850949,1.35522291,112860.0,112850.0,0.07989]
[1758522851546,1.83005256,112860.0,112850.0,0.00044]
[1758522851752,1.83005256,112860.0,112850.0,4e-05]
[1758522851954,1.83005256,112860.0,112850.0,0.00044]
[1758522852553,1.35522291,112860.0,112850.0,0.00044]
[1758522852753,1.82873256,112860.0,112850.0,0.00044]
[1758522853252,1.82873256,112860.0,112850.0,0.07695]
[1758522853953,0.87345256,112860.0,112850.0,0.07695]
[1758522854254,1.82841256,112860.0,112850.0,0.07695]
[1758522854451,0.87345256,112860.0,112850.0,0.07695]
[1758522854646,1.35318291,112860.0,112850.0,0.07695]
[1758522854852,1.82789256,112860.0,112850.0,0.07695]
[1758522855056,1.82781256,112860.0,112850.0,0.07695]
[1758522855654,0.87345256,112860.0,112850.0,0.07695]
[1758522855849,0.87345256,112860.0,112850.0,0.12382]
[1758522855850,0.39862291,112860.0,112850.0,0.12382]
[1758522856055,1.06091291,112860.0,112850.0,0.59864965]
[1758522856454,1.06091291,112860.0,112850.0,0.47526965]
[1758522856656,0.12436,112820.0,112810.0,0.06291225]
[1758522856851,0.12436,112810.0,112800.0,0.07655]
[1758522857050,1.55298965,112810.0,112800.0,0.07655]
[1758522857250,0.12436,112810.0,112800.0,0.07655]
[1758522857451,1.07812,112810.0,112800.0,0.07655]
[1758522857660,1.14801527,112810.0,112800.0,0.07655]
[1758522857857,1.14793527,112810.0,112800.0,0.07655]
[1758522858856,1.14793527,112810.0,112800.0,0.08155]
[1758522859056,1.62236492,112810.0,112800.0,0.09431]
[1758522859254,0.66908492,112810.0,112800.0,0.09431]
[1758522859457,1.14757527,112810.0,112800.0,0.14118]
[1758522859656,0.06989527,112810.0,112800.0,1.04159635]
[1758522859853,0.001,112810.0,112800.0,1.516426]
[1758522860052,0.001,112810.0,112800.0,1.04159635]
[1758522860255,0.001,112810.0,112800.0,0.94159635]
[1758522860458,0.001,112810.0,112800.0,0.93659635]
[1758522860657,0.001,112810.0,112800.0,0.95955737]
[1758522861057,0.001,112810.0,112800.0,0.87097067]
[1758522861257,0.001,112810.0,112800.0,0.4617667]
[1758522862661,0.001,112810.0,112800.0,1.01862316]
[1758522862857,0.001,112810.0,112800.0,0.4617667]
[1758522863055,0.001,112810.0,112800.0,1.01862316]
[1758522863453,0.001,112810.0,112800.0,1.11862316]
[1758522864460,0.001,112810.0,112800.0,1.01862316]
[1758522866463,0.001,112810.0,112800.0,1.11862316]
[1758522867258,0.001,112810.0,112800.0,1.11962316]
[1758522867455,0.001,112810.0,112800.0,0.5627667]
[1758522867665,0.001,112810.0,112800.0,1.01962316]
[1758522868262,0.38313,112810.0,112800.0,0.001]
[1758522868466,0.0486,112770.0,112760.0,0.02108801]
[1758522868759,0.13013,112770.0,112760.0,0.10488513]
[1758522868960,0.13013,112770.0,112760.0,0.10328513]
[1758522869165,0.13013,112770.0,112760.0,0.10368513]
[1758522870264,0.39616398,112770.0,112760.0,0.0888]
[1758522870467,0.95302044,112770.0,112760.0,0.1014]
[1758522870661,0.39616398,112770.0,112760.0,0.1018]
[1758522870862,0.95302044,112770.0,112760.0,0.1018]
[1758522871468,0.95302044,112770.0,112760.0,0.0958]
[1758522871766,1.02223859,112770.0,112760.0,0.0958]
[1758522871969,1.02223859,112770.0,112760.0,0.0004]
[1758522872162,0.46738213,112770.0,112760.0,0.0004]
[1758522872567,1.02423859,112770.0,112760.0,0.0004]
[1758522872867,1.02423859,112770.0,112760.0,0.0022]
[1758522874065,1.02423859,112770.0,112760.0,0.00216]
[1758522874264,1.02423859,112770.0,112760.0,0.0018]
[1758522874463,1.02423859,112770.0,112760.0,0.0022]
[1758522874664,1.97403859,112770.0,112760.0,0.0018]
[1758522874962,1.97403859,112770.0,112760.0,0.0022]
[1758522875162,1.97371859,112770.0,112760.0,0.0022]
[1758522875370,1.97381859,112770.0,112760.0,0.0022]
[1758522876067,0.46748213,112770.0,112760.0,0.0022]
[1758522876268,1.97373859,112770.0,112760.0,0.0022]
[1758522876861,1.02433859,112770.0,112760.0,0.0022]
[1758522877266,1.02433859,112770.0,112760.0,0.0846]
[1758522877471,1.97341859,112770.0,112760.0,0.0846]
[1758522877770,1.72337859,112770.0,112760.0,0.0846]
[1758522878769,0.77433859,112770.0,112760.0,0.0846]
[1758522878972,1.72329859,112770.0,112760.0,0.0846]
[1758522879367,1.72301859,112770.0,112760.0,0.0846]
[1758522879568,0.77433859,112770.0,112760.0,0.0846]
[1758522879763,1.72281859,112770.0,112760.0,0.0846]
[1758522879961,1.72277859,112770.0,112760.0,0.0846]
[1758522882468,0.77433859,112770.0,112760.0,0.0846]
[1758522882671,0.21748213,112770.0,112760.0,0.3346]
[1758522882866,0.17088213,112770.0,112760.0,0.37297]
[1758522883468,0.08735213,112770.0,112760.0,0.37297]
[1758522883967,0.08856833,112770.0,112760.0,0.37297]
[1758522884163,0.0001,112790.0,112780.0,0.2180124]
[1758522884367,0.0001,112800.0,112790.0,0.1955045]
[1758522884566,0.0001,112810.0,112800.0,0.2093567]
[1758522884762,0.0001,112820.0,112810.0,0.1954888]
[1758522884965,0.0001,112830.0,112820.0,0.217981]
[1758522885164,0.01662814,112840.0,112830.0,0.10691]
[1758522885365,0.94726,112850.0,112840.0,0.03837]
[1758522885571,0.94716,112850.0,112840.0,0.12077]
[1758522885770,0.94716,112850.0,112840.0,0.67762646]
[1758522886074,0.92005448,112850.0,112840.0,0.67762646]
[1758522886275,1.00358448,112850.0,112840.0,0.67762646]
[1758522886474,0.0486,112810.0,112800.0,0.0001]
[1758522886671,0.13213,112790.0,112780.0,0.02055291]
[1758522887173,0.13213,112790.0,112780.0,0.02095291]
[1758522887372,0.0486,112800.0,112780.0,0.91020937]
[1758522887576,0.13213,112810.0,112800.0,0.0824]
[1758522887875,0.13213,112810.0,112800.0,0.63925646]
[1758522888271,0.13213,112810.0,112800.0,0.0824]
[1758522888674,0.13213,112810.0,112800.0,0.0924]
[1758522889171,0.13201,112810.0,112800.0,0.0824]
[1758522889362,0.13801,112810.0,112800.0,0.0824]
[1758522890068,0.14101,112810.0,112800.0,0.0824]
[1758522891478,0.21179101,112810.0,112800.0,0.0824]
[1758522891677,0.21179101,112810.0,112800.0,0.63925646]
[1758522892375,0.0486,112790.0,112780.0,0.0004]
[1758522892568,0.13213,112780.0,112770.0,0.0824]
[1758522892876,0.13213,112770.0,112760.0,0.0824]
[1758522893076,1.07729,112770.0,112760.0,0.0832]
[1758522893882,1.09365241,112770.0,112760.0,0.63925646]
[1758522894084,1.09365241,112770.0,112760.0,0.63965646]
[1758522894877,1.09365241,112770.0,112760.0,0.0828]
[1758522895078,1.09065241,112770.0,112760.0,0.0828]
[1758522895378,1.09021241,112770.0,112760.0,0.0828]
[1758522895578,1.09021241,112770.0,112760.0,0.0928]
[1758522895972,1.09009241,112770.0,112760.0,0.0854]
[1758522896173,1.09309241,112770.0,112760.0,0.0828]
[1758522896373,0.15049241,112770.0,112760.0,0.0828]
[1758522896575,1.09489241,112770.0,112760.0,0.0828]
[1758522897272,1.34489241,112770.0,112760.0,0.0004]
[1758522897480,1.34489241,112770.0,112750.0,0.02135882]
[1758522897481,0.04808,112760.0,112750.0,0.10040882]
[1758522897677,0.13012,112760.0,112750.0,0.10120882]
[1758522898185,0.13012,112760.0,112750.0,0.65806528]
[1758522898684,0.94512,112760.0,112750.0,0.93264528]
[1758522898886,0.94492,112760.0,112750.0,0.93264528]
[1758522899188,0.001,112760.0,112750.0,1.03264528]
[1758522900186,0.001,112760.0,112750.0,0.93264528]
[1758522900583,0.001,112760.0,112750.0,1.02127128]
[1758522900788,0.01629785,112770.0,112760.0,0.11957]
[1758522901090,0.0001,112780.0,112770.0,0.2155903]
[1758522901282,0.04808,112810.0,112800.0,0.07985]
[1758522901591,0.94344,112810.0,112800.0,0.67642646]
[1758522902091,0.95926916,112820.0,112800.0,0.76501266]
[1758522902294,0.93216365,112820.0,112800.0,0.67642646]
[1758522902498,0.04818,112820.0,112800.0,0.67642646]
[1758522902690,0.08204,112810.0,112800.0,0.07985]
[1758522902879,0.68697646,112810.0,112800.0,0.0005]
[1758522903085,0.13012,112810.0,112800.0,0.0005]
[1758522903289,0.14112,112810.0,112800.0,0.0005]
[1758522904797,1.01957235,112810.0,112800.0,0.0005]
[1758522905092,1.02157235,112810.0,112800.0,0.0005]
[1758522905296,1.02157235,112810.0,112780.0,0.0008]
[1758522905297,0.13012,112790.0,112780.0,0.0008]
[1758522905497,0.13012,112780.0,112770.0,0.07985]
[1758522906188,0.12912,112780.0,112750.0,0.61713528]
[1758522906394,1.07252,112770.0,112760.0,0.07985]
[1758522906592,1.07252,112770.0,112750.0,0.02135882]
[1758522906793,0.13012,112760.0,112750.0,0.10120882]
[1758522906994,0.13012,112760.0,112750.0,0.10040882]
[1758522907195,0.13012,112760.0,112750.0,0.10080882]
[1758522907494,0.13012,112760.0,112750.0,0.65766528]
[1758522907697,0.13012,112760.0,112750.0,0.63710646]
[1758522907990,1.0722,112760.0,112750.0,0.63710646]
[1758522908195,1.0722,112760.0,112750.0,0.08025]
[1758522908390,1.0722,112760.0,112750.0,0.63670646]
[1758522908592,1.0722,112760.0,112750.0,0.63710646]
[1758522908792,1.0762,112760.0,112750.0,0.63710646]
[1758522908990,1.0782,112760.0,112750.0,0.63710646]
[1758522909198,0.13612,112760.0,112750.0,0.63710646]
[1758522909390,1.07816,112760.0,112750.0,0.63710646]
[1758522910090,0.13612,112760.0,112750.0,0.08025]
[1758522910290,0.7236,112760.0,112750.0,0.63710646]
[1758522911496,1.07752,112760.0,112750.0,0.63710646]
[1758522911894,0.13612,112760.0,112750.0,0.63710646]
[1758522912197,0.59288,112760.0,112750.0,0.65943646]
[1758522912397,0.9472,112760.0,112750.0,0.65943646]